Cogmind - Beta 17 @@@ ROGUE MODE // 2026.07.28 @ 14:49:58 Player: leek.801 Result: Self-destructed Performance ------------- Evolutions (2) 1000 Regions Visited (3) 600 Robots Destroyed (80) 400 Value Destroyed (1872) 1872 Prototype IDs (1) 20 Alien Tech Used (0) 0 Bonus (11) 11 TOTAL SCORE: 3903 Bonus ------- High Alert Combat Kills 11 Cogmind --------- Core Integrity 296/550 Matter 26/300 Energy 275/275 System Corruption 2% Temperature Cool (9) Movement Core (850) Ox16 Location -8/Materials Parts ------- > --- POWER (1) -------- Deuterium Engine > --- PROPULSION (3) --- (None) > --- UTILITY (4) ------ Large Storage Unit Sensor Array Improved Targeting Computer Hardened Medium Armor Plating > --- WEAPON (3) ------- Particle Gun Heavy Assault Rifle Improved Grenade Launcher > --- INVENTORY (15) --- Armored Treads Advanced Treads Improved Heat Sink Medium Storage Unit Signal Interpreter Improved Weapon Shielding Hacking Suite Heavy Mace Peak State ------------ > --- POWER ------------ Deuterium Engine > --- PROPULSION ------- Advanced Treads Wheel Armored Wheel > --- UTILITY ---------- Large Storage Unit Sensor Array Improved Targeting Computer Hardened Medium Armor Plating > --- WEAPON ----------- Particle Gun Heavy Assault Rifle Improved Grenade Launcher > --- INVENTORY -------- Armored Treads Advanced Treads Improved Heat Sink Medium Storage Unit Signal Interpreter Improved Weapon Shielding Hacking Suite Heavy Mace [Rating: 25] Favorites ----------- Power Ion Engine Engine Ion Engine Propulsion Light Treads Treads Light Treads Wheel Wheel Utility Medium Storage Unit Device Sensor Array Storage Medium Storage Unit Processor Improved Targeting Computer Protection Hardened Light Armor Plating Weapon Assault Rifle Energy Gun Medium Laser Ballistic Gun Assault Rifle Launcher Improved Grenade Launcher Slashing Weapon Mining Claw Build | -11 -10 -9 -8 ------- Run | Yrd Mat Mat Mat Slots Evolved 4 | . . 2 2 Power . | . . . . Propulsion 1 | . . . 1 Utility 2 | . . 2 . Weapon 1 | . . . 1 Parts Attached 43 | 7 7 18 11 Power 4 | 1 1 1 1 Engine 4 | 1 1 1 1 Core . | . . . . Reactor . | . . . . Propulsion 13 | 2 1 6 4 Treads 7 | 2 . 4 1 Leg . | . . . . Wheel 6 | . 1 2 3 Hover . | . . . . Flight . | . . . . Utility 12 | 2 2 6 2 Device 4 | 1 . 3 . Storage 3 | 1 1 . 1 Processor 2 | . . 2 . Hackware . | . . . . Protection 3 | . 1 1 1 Artifact . | . . . . Weapon 14 | 2 3 5 4 Energy Gun 5 | . 2 2 1 Energy Cannon . | . . . . Ballistic Gun 7 | 2 . 3 2 Ballistic Cannon . | . . . . Launcher 1 | . . . 1 Special Weapon . | . . . . Impact Weapon . | . . . . Slashing Weapon 1 | . 1 . . Piercing Weapon . | . . . . Special Melee Weapon . | . . . . Unidentified Prototypes 1 | . . 1 . Parts Lost 12 | . . 2 10 Power 1 | . . . 1 Propulsion 5 | . . . 5 Utility 2 | . . 1 1 Weapon 4 | . . 1 3 Highest Loss Streak 5 | . . 1 5 To Critical Strikes . | . . . . Average Backups 9 | 5 8 9 10 Power . | . 1 1 . Propulsion 3 | 3 4 3 2 Utility 2 | . . 2 5 Weapon 2 | . 1 2 2 Tool/Special . | . . . . Unused Backups 15 | 2 1 4 8 Power 2 | . . 1 1 Propulsion 6 | 2 . 2 2 Utility 4 | . . . 4 Weapon 3 | . 1 1 1 Tool/Special . | . . . . Average Slot Usage (%) 98 | . 100 98 91 Engine 11 | . 14 11 7 Treads 17 | . 26 16 5 Wheel 5 | . 1 5 19 Device 12 | . 13 12 9 Storage 11 | . 14 11 9 Processor 3 | . . 3 9 Protection 11 | . . 15 8 Energy Gun 6 | . 12 5 . Ballistic Gun 15 | . 9 16 21 Slashing Weapon 1 | . 5 . . Peak Build Rating 25 | 7 9 17 25 Average Rating 12 | 5 7 13 19 On Entrance 7 | . 7 9 15 Avg Prop Armor Cover (%) 8 | . 11 9 7 Naked Turns . | . . . . Heaviest Build 50 | 14 24 30 50 Greatest Support 40 | 40 40 40 40 Greatest Overweight (x) 4 | . 2 2 4 Average Overweight (x) . | . . . . Largest Inventory Capacity 15 | 8 10 10 15 Average Capacity 10 | 7 9 10 13 Most Carried 13 | 7 10 10 13 Average Carried 9 | 5 8 9 10 Final Capacity 15 | 8 10 10 15 Final Carried 10 | 7 10 10 8 Class Distribution -------------------- 53% | Mutant 37% | Scavenger-Mutant 9% | Gunner Dominant Class ---------------- Mutant | -10/Materials Scavenger-Mutant | -9/Materials Gunner | -8/Materials Resources | -11 -10 -9 -8 ----------- Run | Yrd Mat Mat Mat Matter Collected 1597 | 310 268 787 232 Remotely . | . . . . Salvage Created 2401 | 147 410 1315 529 Parts 172 | 15 31 89 37 Haulers Intercepted 2 | . . 2 . Recyclers Shooed 3 | 1 1 1 . Parts Field Recycled . | . . . . Retrieved Matter . | . . . . Parts Self-Destructed . | . . . . Prevented . | . . . . Parts Restored . | . . . . Kills | -11 -10 -9 -8 ------- Run | Yrd Mat Mat Mat Combat Hostiles Destroyed 56 | . 13 28 15 Guns 47 | . 13 28 6 AOE 9 | . . . 9 Classes Destroyed 12 | 2 4 4 2 Worker 2 | . . 1 1 Builder 4 | . 1 1 2 Tunneler 4 | 4 . . . Hauler 2 | . . 2 . Recycler 3 | 1 . 2 . Operator 1 | . . . 1 Watcher 8 | . 2 4 2 Swarmer 22 | . 6 12 4 Grunt 21 | . 7 7 7 Brawler 1 | . . . 1 Duelist 2 | . . 1 1 Sentry 10 | . . 8 2 Best Kill Streak 8 | 4 7 5 8 Combat Bots Only 6 | . 6 4 6 Max Kills in Single Turn 5 | 2 1 2 5 Gunslinging 1 | . . 1 . Exploded 3 | . . . 3 Melee . | . . . . Uniques/NPCs Destroyed . | . . . . Combat | -11 -10 -9 -8 -------- Run | Yrd Mat Mat Mat Hostile Shots Fired 280 | . 48 99 133 Missed 74 | . 7 24 43 Hits 206 | . 41 75 90 Projectile 206 | . 41 75 90 Critical Strikes 7 | . . 4 3 Damage Taken 2733 | . 439 891 1403 Core 421 | . 103 64 254 Absorbed by Shields . | . . . . Regen/Repaired (Parts) 257 | . . 174 83 Core Remaining (%) 80 | 100 58 84 . Volleys Fired 177 | 10 40 96 31 Largest 3 | 2 2 2 3 Hottest 100 | 40 70 100 68 Shots Fired 351 | 20 79 185 67 Gun 340 | 20 79 185 56 Cannon . | . . . . Launcher 11 | . . . 11 Special . | . . . . Kinetic 234 | 20 40 118 56 Thermal 106 | . 39 67 . Explosive 11 | . . . 11 Electromagnetic . | . . . . Robot Hit Streak 24 | 9 6 24 8 Robot Miss Streak 5 | 2 3 3 5 Penetration Max . | . . . . Secondary Targets 6 | . 2 4 . Max Gunslinging Chain 1 | . 1 1 . Shots Hit Robots 224 | 12 51 116 45 Core Hits 129 | 7 24 56 42 Critical Kills 1 | . . 1 . Critical Parts Destroyed . | . . . . Critical Strikes 7 | . . 7 . Burn 6 | . . 6 . Destroy 1 | . . 1 . Melee Attacks 42 | . 24 18 . Impact . | . . . . Slashing 42 | . 24 18 . Piercing . | . . . . Sneak Attacks 1 | . 1 . . Combat Hostiles . | . . . . Follow-up Attacks . | . . . . Damage Inflicted 4082 | 141 686 1609 1646 Guns 3000 | 141 636 1598 625 Cannons . | . . . . Explosions 970 | . . . 970 Melee 50 | . 50 . . Ramming 62 | . . 11 51 Kinetic 2077 | 141 297 1014 625 Thermal 923 | . 339 584 . Explosive 970 | . . . 970 Electromagnetic . | . . . . Impact . | . . . . Slashing 50 | . 50 . . Piercing . | . . . . Highest Corruption 2 | . . . 2 Average Corruption 2 | . . . 2 Corruption Purged . | . . . . Corruption Blocked . | . . . . Overload Shots . | . . . . Overflow Damage 9 | . . . 9 Projectiles . | . . . . Explosions 9 | . . . 9 Melee . | . . . . Knockbacks . | . . . . Impact . | . . . . Kinetic . | . . . . Secondary . | . . . . Self-Inflicted Damage 40 | . . . 40 Shots 1 | . . . 1 Rammed 7 | . . 4 3 Targets Rammed 8 | . . 5 3 Kicked . | . . . . Crushed 1 | . . 1 . Highest Temperature 105 | . 105 63 57 Average Temperature 23 | . 35 16 17 Received Heat Transfer 1242 | . 156 330 756 Siege Activations . | . . . . Martial Activations . | . . . . Shielding Activations . | . . . . Robots Disrupted . | . . . . Combat Hostiles . | . . . . Robots Corrupted . | . . . . Combat Hostiles . | . . . . Parts Fried . | . . . . Impact Corruptions . | . . . . Robots Melted . | . . . . Combat Hostiles . | . . . . Parts Melted 8 | . 3 5 . Heat Transferred 3145 | . 999 2146 . Parts Sabotaged . | . . . . Parts Stolen . | . . . . Parts Stripped . | . . . . Power Chain Reactions . | . . . . Alert | -11 -10 -9 -8 ------- Run | Yrd Mat Mat Mat Maximum Alert Level 2 | . . 1 2 Low Security (%) 76 | 100 100 69 63 Level 1 23 | . . 30 34 Level 2 . | . . . 2 Level 3 . | . . . . Level 4 . | . . . . Level 5 . | . . . . High Security . | . . . . Max Security . | . . . . Peak Influence 406 | 20 153 293 406 Initial 118 | . . 14 118 Average 127 | 2 70 144 186 Influence Increases 1928 | 25 396 927 580 Destroy 0b10 Robot/C 1120 | . 260 560 300 Destroy 0b10 Robot/NC 120 | 25 15 50 30 Destroy Leader 290 | . 54 162 74 Successful Hack 97 | . 38 53 6 Disable Machine 45 | . . . 45 Destroy Structure 76 | . 14 12 50 Partial Spotted 15 | . 15 . . Lose Combat Pursuer 165 | . . 90 75 Influence Decreases 1576 | 25 361 679 511 Entered New Map 186 | . . 21 165 Time Decay 1280 | 25 361 648 246 Lost Part 110 | . . 10 100 Squads Dispatched 9 | . 3 4 2 Investigation 6 | . 2 3 1 Extermination . | . . . . Reinforcement 3 | . 1 1 1 Assault . | . . . . Garrison . | . . . . Intercept . | . . . . Searches Triggered . | . . . . Construction Impeded . | . . . . Haulers Reinforced . | . . . . Active Scanning Responses . | . . . . Cargo Convoy Interrupts . | . . . . Stealth | -11 -10 -9 -8 --------- Run | Yrd Mat Mat Mat Distress Signals 10 | . 2 3 5 Communications Jammed . | . . . . Distress Signals . | . . . . Times Spotted 103 | . 20 48 35 Peak Tracking Total 10 | . 3 5 10 Tactical Retreats 7 | . . 4 3 Traps | -11 -10 -9 -8 ------- Run | Yrd Mat Mat Mat Traps Triggered 3 | . 2 . 1 Indirectly . | . . . . Trap Hack Attempts . | . . . . Triggered . | . . . . Disarmed . | . . . . Reprogrammed . | . . . . Reused . | . . . . Traps Extracted . | . . . . Installed . | . . . . Triggered . | . . . . Machines | -11 -10 -9 -8 ---------- Run | Yrd Mat Mat Mat Machines Disabled 4 | . . 1 3 Max in Single Turn 1 | . . 1 1 Machines Repaired . | . . . . Machines Dismantled . | . . . . Machines Sabotaged . | . . . . Overloaded Fab Kills . | . . . . Hacking | -11 -10 -9 -8 --------- Run | Yrd Mat Mat Mat Machines Accessed 24 | . 6 12 6 Terminals 18 | . 6 8 4 Fabricators . | . . . . Repair Stations 2 | . . 1 1 Recycling Units 1 | . . 1 . Scanalyzers 3 | . . 2 1 Garrison Access . | . . . . Total Hacks 58 | . 13 31 14 Successful 35 | . 8 20 7 Failed 23 | . 5 11 7 Catastrophic 2 | . . 2 . Database Lockouts . | . . . . Manual 50 | . 12 27 11 Terminals 47 | . 13 25 9 Fabricators . | . . . . Repair Stations 5 | . . 2 3 Recycling Units 1 | . . 1 . Scanalyzers 5 | . . 3 2 Garrison Access . | . . . . Terminal Hacks 11 | . 6 5 . Robot Analysis 3 | . 2 1 . Level Access Points 2 | . 1 1 . Branch Access Points 2 | . 1 1 . Locate Traps 2 | . 1 1 . Zone Layout 2 | . 1 1 . Fabricator Hacks . | . . . . Repair Station Hacks 4 | . . 2 2 Scan Component 2 | . . 1 1 Repair 2 | . . 1 1 Recycling Unit Hacks 1 | . . 1 . Report Inventory 1 | . . 1 . Scanalyzer 3 | . . 1 2 Retrieve Study 3 | . . 1 2 Garrison Access Hacks . | . . . . Unauthorized Hacks 15 | . 2 10 3 Terminals 15 | . 2 10 3 Assimilate 1 | . 1 . . Botnet 5 | . 1 2 2 Skim 9 | . . 8 1 Fabricators . | . . . . Repair Stations . | . . . . Recycling Units . | . . . . Scanalyzers . | . . . . Garrison Access . | . . . . Data Cores Recovered 1 | . . . 1 Used . | . . . . Hacking Detections 14 | . 4 8 2 Full Trace Events 7 | . 2 5 . Feedback Events . | . . . . Feedback Blocked . | . . . . Robot Schematics Acquired . | . . . . Robots Built . | . . . . Authchips . | . . . . Time . | . . . . Total Robot Build Rating . | . . . . Part Schematics Acquired . | . . . . Parts Built . | . . . . Authchips . | . . . . Time . | . . . . Total Part Build Rating . | . . . . Part Studies Acquired 3 | . . 1 2 Parts Repaired 2 | . . 1 1 Time 58 | . . 32 26 Parts Recycled . | . . . . Recycled Matter . | . . . . Retrieved Matter . | . . . . Retrieved Components . | . . . . Parts Scanalyzed . | . . . . Part Schematics Acquired . | . . . . Parts Damaged . | . . . . Bothacking | -11 -10 -9 -8 ------------ Run | Yrd Mat Mat Mat Used RIF Installer . | . . . . Robots Hacked . | . . . . Non-combat . | . . . . Combat . | . . . . Robot Hacks Applied . | . . . . Relay Couplers Released . | . . . . Fabnet Peak Effective % . | . . . . Robots Rewired . | . . . . Allies Hacked . | . . . . Hacks Repelled . | . . . . Allies | -11 -10 -9 -8 -------- Run | Yrd Mat Mat Mat Total Allies . | . . . . Largest Group . | . . . . Highest-Rated Group . | . . . . Highest-Rated Ally . | . . . . Total Orders . | . . . . Ally Attacks . | . . . . Total Damage . | . . . . Kills . | . . . . Allies Corrupted . | . . . . Allies Melted . | . . . . Intel | -11 -10 -9 -8 ------- Run | Yrd Mat Mat Mat Active Infowar (turns) 3486 | 73 997 1889 527 Sensors 2143 | . . 1616 527 Seismic 1343 | 73 997 273 . Robot Analysis Total 3 | . 2 1 . Derelict Logs Recovered . | . . . . Drone Launches . | . . . . Drone Recoveries . | . . . . Exploration | -11 -10 -9 -8 ------------- Run | Yrd Mat Mat Mat Turns Passed 4929 | 211 1001 3190 527 Spaces Moved 2462 | 108 470 1548 336 Core 8 | 8 . . . Treads 1636 | 100 423 1043 70 Legs . | . . . . Wheels 818 | . 47 505 266 Hover . | . . . . Flight . | . . . . Fastest Speed 50 | 50 95 95 73 Average Speed 138 | 151 153 139 106 Slowest Speed 225 | 160 160 160 225 Overloaded Moves . | . . . . Propulsion Burnouts . | . . . . Robots Hopped . | . . . . Potential Cave-ins . | . . . . Cave-ins Triggered . | . . . . Exploration Rate (%) 53 | 4 72 92 44 Regions Visited 3 Branch Regions . Pre-discovered Areas . | . . . . Known Exits Taken 2 | . 1 1 . Unknown Exits Taken 1 | 1 . . . Scrap Searched . | . . . . Spaces Dug 20 | . 12 8 . Terrain Destroyed 69 | . 12 8 49 Melee 20 | . 12 8 . Projectile . | . . . . AOE 49 | . . . 49 Terrain Rammed . | . . . . Walls Destroyed . | . . . . Machines Disabled . | . . . . Actions | -11 -10 -9 -8 --------- Run | Yrd Mat Mat Mat Total 3557 | 135 616 2356 450 Wait 714 | . 52 620 42 Move 2459 | 107 469 1547 336 Hop . | . . . . Pick Up 40 | 9 6 14 11 Fast Attach 13 | 7 . 4 2 Attach 13 | . . 5 8 Detach 1 | . . 1 . Swap 59 | . 19 28 12 Drop 31 | 2 6 18 5 Fire 177 | 10 40 96 31 Melee 42 | . 24 18 . Ram 3 | . . . 3 Kick . | . . . . Crush 5 | . . 5 . Escape Stasis . | . . . . Rewire . | . . . . Trap . | . . . . Miscellaneous . | . . . . Route ------- -11/Scrapyard -10/Materials (discovered 5 exits: *Mat x3 / Min / [*Sub]) -9/Materials (discovered 6 exits: *Mat x3 / *Min / *Sto x2) -8/Materials History --------- Turn | Location | Event 9 | -11/Scrapyard | Discovered new exit (range 16) 212 | -11/Scrapyard | Entered Materials 328 | -10/Materials | Build established: Mutant 622 | -10/Materials | Discovered new exit (range 8) 755 | -10/Materials | Discovered new exit (range 7) 760 | -10/Materials | Identified exit to Materials 1077 | -10/Materials | Discovered new exit (range 7) 1114 | -10/Materials | Identified exit to Mines 1213 | -10/Materials | Entered another Materials area 1213 | -9/Materials | Evolved 2 slots: Utility x2 1399 | -9/Materials | Discovered new exit (range 6) 1627 | -9/Materials | Discovered new exit (range 10) 1639 | -9/Materials | Build established: Scavenger-Mutant 1700 | -9/Materials | Discovered new exit (range 12) 2417 | -9/Materials | Identified exit to Mines 2417 | -9/Materials | Identified exit to Storage 2527 | -9/Materials | Discovered new exit (range 12) 3270 | -9/Materials | Repaired Hrd. Light Armor Plating 3482 | -9/Materials | Build established: Mutant 3837 | -9/Materials | Discovered new exit (range 8) 4110 | -9/Materials | Identified exit to Materials 4403 | -9/Materials | Entered another Materials area 4403 | -8/Materials | Evolved 2 slots: Propulsion x1, Weapon x1 4464 | -8/Materials | Repaired Lgt. Treads+ 4700 | -8/Materials | Build established: Gunner 4867 | -8/Materials | Lost 5 parts (1n1u3w) 4930 | -8/Materials | Self-destructed Last Messages --------------- 04887_ U-05 Engineer lays Concrete. 04887_ K-01 Serf collects debris. 04888_ U-05 Engineer lays Concrete. 04890_ R-06 Scavenger collects Lgt. Ion Engine. 04891_ U-05 Engineer builds a Wall. 04891_ K-01 Serf collects debris. 04893_ R-06 Scavenger collects Lgt. Assault Rifle. 04894_ O-16 Technician: "IFF HANDSHAKE FAILED. SECURING TERMINAL." 04899_ ALERT: Hostiles spotted, dispatching reinforcements to Terminal M010. 04919_ Slammed into A-02 Transporter. 04919_ Arm. Wheel+ destroyed. 04919_ System corrupted by crushing effect (+2). 04920_ W-25 Informer sends out distress signal. 04921_ Adv. Treads destroyed. 04925_ Slammed into K-01 Serf. 04925_ K-01 Serf sends out distress signal. 04930_ Wheel+ destroyed. Map ----- +----------------------------------------------------+ | | | | | | | | | | | | | ?????????????????????????????????????????????????? | | ?????????????????????????????????????????????????? | | ?????????????????????????????????????????????????? | | ?????????????????????????????????????????????????? | | ?????????????????????????????????????????????????? | | ?????????????????????????????????????????????????? | | ????????????????????????????????###??????????????? | | ????????????????????????????????! ???????????????? | | ???????????????????????????????? ???????????????? | | ????????????H??????????????????? ???? ??????????? | | ???????????????????????????????? !??? ???????????? | | ???????????????????????????????? ?? ?? ???????? | | ??????????????######+######???##/### ???????? | | ??????????????# k #???# #????????? | | ??????????????# +??? #????????? | | ??????????????# s#???# """ ""#????????? | | ??????????????# #???# """ Y"#????????? | | ??????????????# g#???# """ ""#????????? | | ??????????????# = ##### o #????????? | | ??????????????# @/ssgsg ] +????????? | | ?????????????????###############g## #????????? | | ??????????????????# T ! #? #????????? | | ??????????????????# #? #????????? | | ?????????????????# """" """" #? #????????? | | ???????????????????? """" """" ## #????????? | | ??????????????????# """" """" + ?????????? | | ??????????????????# # #??????????? | | ??????????????############+####### #??????????? | | ???????????? #??????????? | | ???????????? #??????????? | | ???????????? #??????????? | | ???????????? #??????????? | | ???????????? +??????????? | | ??????????????############ ###### #??????????? | | ????????????????##########+###### #??????????? | | ????????????????# #??????????? | | ????????????????# #??????????? | | ????????????????# #??????????? | | ????????????????# # #??????????? | | ????????????????# [%% #??????????? | | ??????? ????????# #[= ! #??????????? | | ??????" ????????# [ %*#??????????? | | ??????" ????????# [[ #??????????? | | ???"""" ????????# * # #??????????? | +----------------------------------------------------+ Best States ------------- Heat Dissipation 42 Energy Generation 14 Energy Capacity 275 Matter Stores 300 Matter Capacity 300 Sight Range 16 Robot Scan Range 14 Terrain Scan Density 10 Armor Coverage 300 Evasion (%) 45 Targeting Accuracy 6 Recoil Reduction 2 Item Schematics ----------------- None Robot Schematics ------------------ None Fabricated ------------ Nothing Repaired ---------- Hrd. Light Armor Plating | 3% | -9/Materials Lgt. Treads | 40% | -8/Materials Studied --------- Lgt. Treads | -9/Materials | Hacked Wheel | -8/Materials | Hacked Arm. Wheel | -8/Materials | Hacked Alien Tech Used ----------------- None Achievements -------------- None Challenges ------------ None Game ------ Seed CombatAlphaSword Manual? 0 Play Time 01:46:13 Cumulative 168.4 hours Start 2026.06.28 @ 12:53:08 End 2026.07.28 @ 14:49:58 Sessions 13 Manual Loads 0 Difficulty Rogue Special Mode None Game No. 148 Rogue 148 Adventurer 0 Explorer 0 Win Type - Total 0 Types 0/0/0/0/0/0/0/0/0/0 Lore% 16 Gallery% 26 Achievement% 19 Wizard Run 0 Options --------- Layout 2 ASCII 0 Keyboard 0 Movement Numpad Keybinds 0 Fullscreen 1 Font 24/Smallcaps Map View 50x44 Zoom Use 0% Tactical HUD 1 Map Filters NONE Filters NONE Steam 1 RUN: f4179585-4460-4d14-929b-195c514af745